bitfinex-derivatives/quotes_BNBF0:USTF0_20250425
["timestamp","ask_amount","ask_price","bid_price","bid_amount"]
[1745605958002,0.28801271,605.42,603.57,0.30403554]
[1745605959503,1.25737978,605.33,603.57,0.30403554]
[1745605962107,1.25737978,605.38,603.57,0.30403554]
[1745605962909,0.28801867,605.37,603.57,0.30403554]
[1745605963705,0.28801867,605.37,603.58,1.314]
[1745605964206,0.28801867,605.37,603.59,0.30402407]
[1745605964612,1.25737978,605.21,603.59,0.30402407]
[1745605965712,1.25737978,605.21,603.58,1.314]
[1745605966014,0.28803655,605.2,603.58,1.314]
[1745605967713,0.28803655,605.2,603.6,1.04405207]
[1745605968712,1.25737978,605.23,603.6,1.04405207]
[1745605969008,0.28805324,605.19,603.6,1.04405207]
[1745605969912,0.28805324,605.19,603.61,0.912]
[1745605974615,1.25737978,605.41,603.61,0.912]
[1745605975011,0.28803059,605.18,603.61,0.912]
[1745605975315,1.25737978,605.41,603.61,0.912]
[1745605975918,0.28803059,605.4,603.61,0.912]
[1745605978923,0.28803059,605.4,603.62,0.30404936]
[1745605979120,1.25737978,605.34,603.62,0.30404936]
[1745605979619,1.25737978,605.34,603.61,0.912]
[1745605979823,1.25737978,605.34,603.62,0.3040507]
[1745605980925,0.28801986,605.33,603.62,0.3040507]
[1745605981625,1.25737978,605.22,603.62,0.3040507]
[1745605981820,1.25737978,605.22,603.63,1.486]
[1745605983325,1.25737978,605.22,603.64,0.30404771]
[1745605983827,1.25737978,605.13,603.63,1.486]
[1745605984122,1.25737978,605.13,603.64,0.30404771]
[1745605985428,1.25737978,605.13,603.65,1.188]
[1745605985628,1.25737978,605.13,603.66,0.30404771]
[1745605985927,1.25737978,605.13,603.65,1.188]
[1745605986522,1.25737978,605.12,603.65,1.188]
[1745605988524,1.25737978,605.1,603.65,1.188]
[1745605989329,1.25737978,605.1,603.66,0.30404792]
[1745605991624,1.25737978,605.12,603.65,1.188]
[1745605991830,1.25737978,605.12,603.66,0.30404801]
[1745605992229,1.25737978,605.12,603.66,1.56904801]
[1745605992432,1.25737978,605.12,603.67,0.30404801]
[1745605993126,1.25737978,605.12,603.66,1.265]
[1745605993325,1.25737978,605.12,603.67,1.53904801]
[1745605993529,1.25737978,605.12,603.68,0.30404801]
[1745605994727,1.25737978,605.06,603.68,0.30404801]
[1745605994932,1.25737978,605.06,603.67,1.235]
[1745605995129,1.25737978,605.06,603.68,0.30404787]
[1745605996231,1.25737978,605.06,603.67,1.235]
[1745605996432,1.25737978,605.06,603.68,0.30404297]
[1745605997233,1.25737978,605.1,603.68,0.30404297]
[1745605997731,1.25737978,605.1,603.67,1.235]
[1745605997931,1.25737978,605.1,603.68,0.30404287]
[1745605998726,1.25737978,605.1,603.69,0.30403565]
[1745605998931,1.25737978,605.1,603.7,0.30403565]
[1745605999128,1.25737978,605.1,603.67,1.235]
[1745606002137,0.28800556,605.33,603.67,1.235]
[1745606003739,0.28800556,605.33,603.68,0.30394848]
[1745606003940,1.25737978,605.65,603.67,1.235]
[1745606004138,1.25737978,605.65,603.68,0.30391406]
[1745606005042,0.28791144,605.64,603.68,0.30391406]
[1745606005444,0.28791144,605.64,603.67,1.235]
[1745606005644,0.28791144,605.64,603.68,0.3038909]
[1745606006543,0.28791144,605.64,603.67,1.235]
[1745606007545,1.25737978,605.69,603.67,1.235]
[1745606007942,0.28791859,605.68,603.67,1.235]
[1745606008547,0.28791859,605.68,603.67,2.44]
[1745606009442,0.28791859,605.68,603.67,4.376]
[1745606014447,0.28791859,605.68,603.68,0.30391938]
[1745606014749,0.28791859,605.68,603.67,4.376]
[1745606014952,0.28791859,605.68,603.68,0.30391953]
[1745606016553,1.25737978,606.56,603.68,0.30391953]
[1745606016856,0.28782215,605.67,603.68,0.30391953]
[1745606017148,1.25737978,606.56,603.68,0.30391953]
[1745606017451,2.12377208,607.62,603.68,0.30391953]
[1745606017452,1.25737978,605.83,603.68,0.30391953]
[1745606017653,1.25737978,605.83,603.67,4.376]
[1745606017854,1.25737978,605.83,603.68,0.30390603]
[1745606019254,1.25737978,605.89,603.68,0.30390603]
[1745606020756,1.25737978,605.89,603.67,4.376]
[1745606020956,1.25737978,605.89,603.68,0.30385135]
[1745606022255,2.12377208,606.02,603.68,0.30385135]
[1745606022455,1.25737978,606.17,603.68,0.30385135]
[1745606022856,0.28781858,606.16,603.68,0.30385135]
[1745606025556,1.25737978,606.37,603.68,0.30385135]
[1745606025960,0.28780191,606.36,603.68,0.30385135]
[1745606026857,0.28780191,606.36,603.67,4.376]
[1745606027057,0.28780191,606.36,603.68,0.3038371]
[1745606028458,1.25737978,606.42,603.67,4.376]
[1745606028659,1.25737978,606.42,603.68,0.30383573]
[1745606028852,0.28779596,606.35,603.68,0.30383573]
[1745606030058,0.28779596,606.35,603.67,4.66379596]
[1745606030354,1.25737978,606.1,603.68,0.30383947]
[1745606031960,0.28783881,606.09,603.68,0.30383947]
[1745606032659,1.25737978,606.03,603.68,0.30383947]
[1745606033158,1.25737978,606.03,603.67,3.42883881]
[1745606033359,1.25737978,606.03,603.68,0.30383924]
[1745606034659,1.25737978,606.03,603.67,3.141]
[1745606034860,1.25737978,606.03,603.69,0.30382225]
[1745606035160,2.12377208,606.75,603.67,3.141]
[1745606035161,0.28784714,606.02,603.7,0.30382225]
[1745606035461,0.28784714,606.02,603.71,0.30382225]
[1745606035760,0.28784714,606.02,603.72,0.30382225]
[1745606035958,0.28784714,606.02,603.68,0.30382225]
[1745606036156,0.28784714,606.02,603.69,0.30382225]
[1745606036357,0.28784714,606.02,603.7,0.3038336]
[1745606036561,0.28784714,606.02,603.68,0.3038336]
[1745606036861,0.28784714,606.02,603.69,0.3038336]
[1745606037061,0.28784714,606.02,603.68,0.3038336]
[1745606037262,0.28784714,606.02,603.69,0.3038336]
[1745606037561,0.28784714,606.02,603.68,0.3038336]
[1745606037761,0.28784714,606.02,603.7,0.3038336]
[1745606037963,0.28784714,606.02,603.71,0.3038336]
[1745606038256,0.28784714,606.02,603.72,0.3038336]
[1745606038456,0.28784714,606.02,603.67,1.29284714]
[1745606038457,0.28784714,606.02,603.68,0.3038336]
[1745606038661,0.28784714,606.02,603.69,0.3038336]
[1745606038861,0.28784714,606.02,603.7,0.3038336]
[1745606039155,0.28784714,606.02,603.71,0.3038336]
[1745606039363,0.28784714,606.02,603.72,0.3038336]
[1745606039563,0.28784714,606.02,603.68,0.3038336]
[1745606039762,0.28784714,606.02,603.69,0.3038336]
[1745606040061,0.28784714,606.02,603.7,0.3038336]
[1745606040260,0.28784714,606.02,603.68,0.3038336]
[1745606040460,0.28784714,606.02,603.69,0.3038336]
[1745606040661,0.28784714,606.02,603.68,0.3038336]
[1745606040861,0.28784714,606.02,603.67,1.29284714]
[1745606041056,0.28784714,606.02,603.68,0.30386766]
[1745606043260,1.54522692,606.02,603.68,0.30386766]
[1745606043661,1.54522692,606.02,603.67,1.29284714]
[1745606043861,1.54522692,606.02,603.68,0.3038732]
[1745606045166,1.54522692,606.02,603.67,1.29284714]
[1745606045366,1.54522692,606.02,603.68,0.3038857]
[1745606046160,1.25737978,605.85,603.68,0.3038857]
[1745606046866,0.28789001,605.84,603.69,0.30389663]
[1745606047067,0.28789001,605.84,603.7,0.30389663]
[1745606047270,0.28789001,605.84,603.68,0.30389663]
[1745606047465,0.28789001,605.84,603.69,0.30389663]
[1745606047768,0.28789001,605.84,603.7,0.30389663]
[1745606047969,0.28789001,605.84,603.71,0.30389663]
[1745606048169,0.28789001,605.84,603.72,0.30389663]
[1745606048373,0.28789001,605.84,603.67,1.29289001]
[1745606048571,0.28789001,605.84,603.68,0.30389821]
[1745606049267,1.25737978,605.67,603.68,0.30389821]
[1745606049970,0.28791144,605.66,603.68,0.30389821]
[1745606051474,0.28791144,605.66,603.67,1.29291144]
[1745606051668,0.28791144,605.66,603.68,0.30389875]
[1745606052673,1.25737978,605.42,603.74,1.04405207]
[1745606052871,1.25737978,605.42,603.75,0.30389875]
[1745606053070,1.25737978,605.42,603.74,1.04405207]
[1745606053273,1.25737978,605.42,603.75,0.30388768]
[1745606054879,1.25737978,605.51,603.85,1.04405207]
[1745606055073,1.25737978,605.51,603.86,0.30388768]
[1745606055978,0.28790906,605.5,603.86,0.30388768]
[1745606056182,0.28790906,605.5,603.85,1.04405207]
[1745606056383,0.28790906,605.5,603.86,0.303888]
[1745606057085,0.28790906,605.5,603.85,1.04405207]
[1745606057285,0.28790906,605.5,603.71,0.28790906]
[1745606057486,0.28790906,605.5,603.72,0.30389808]
[1745606057680,0.28790906,605.5,603.71,0.28790906]
[1745606057879,0.28790906,605.5,603.72,0.30389787]
[1745606058788,1.25737978,605.8,603.72,0.30389787]
[1745606058989,0.2878912,605.49,603.73,0.30389787]
[1745606059188,1.25737978,605.8,603.74,0.30389787]
[1745606059386,1.25737978,605.8,603.72,0.30389787]
[1745606059583,1.25737978,605.8,603.73,0.30389787]
[1745606059887,1.25737978,605.8,603.74,0.30389787]
[1745606060084,0.2878912,605.79,603.72,0.30389787]
[1745606060388,0.2878912,605.79,603.73,0.30389787]
[1745606060584,0.2878912,605.79,603.72,0.30389787]
[1745606060788,0.2878912,605.79,603.74,0.30389787]
[1745606060987,0.2878912,605.79,603.72,0.30389787]
[1745606061187,0.2878912,605.79,603.71,0.2878912]
[1745606061385,0.2878912,605.79,603.72,0.30389998]
[1745606064692,1.25737978,605.81,603.72,0.30389998]
[1745606064893,0.28789001,605.78,603.73,0.30389998]
[1745606065092,0.28789001,605.78,603.72,0.30389998]
[1745606066994,0.28789001,605.78,603.71,0.28789001]
[1745606067193,0.28789001,605.78,603.72,0.30388731]
[1745606067393,0.28789001,605.78,603.72,1.50388731]
[1745606067588,1.25737978,605.81,603.73,0.30388731]
[1745606067989,0.28788882,605.77,603.73,0.30388731]
[1745606068495,1.25737978,605.75,603.73,0.30388731]
[1745606069590,1.25737978,605.75,603.74,1.412]
[1745606069794,1.25737978,605.75,603.75,0.30388731]
[1745606070095,1.25737978,605.75,603.74,1.412]
[1745606070295,1.25737978,605.75,603.75,0.30388504]
[1745606070795,0.28789358,605.74,603.75,0.30388504]
[1745606071597,0.28789358,605.74,603.74,1.412]
[1745606071797,0.28789358,605.74,603.75,0.30388715]
[1745606073101,0.28789358,605.74,603.74,1.412]
[1745606073301,0.28789358,605.74,603.75,0.30388784]
[1745606073498,1.25737978,605.81,603.75,0.30388784]
[1745606073800,0.28788643,605.73,603.75,0.30388784]
[1745606074102,1.25737978,605.81,603.74,1.412]
[1745606074404,1.25737978,605.8,603.77,1.04405207]
[1745606075005,0.2879305,605.79,603.77,1.04405207]
[1745606077303,1.25737978,605.73,603.74,1.412]
[1745606079410,0.2879305,605.79,603.74,1.412]
[1745606079610,1.25737978,606.32,603.74,1.412]
[1745606080810,0.2878781,606.31,603.74,1.412]
[1745606082610,1.25737978,606.1,603.74,1.412]
[1745606085609,1.25737978,606.1,603.11,1.04405207]
[1745606085809,0.2879043,606.09,603.56,0.2879043]
[1745606086011,1.25737978,605.59,603.57,0.30400906]
[1745606086610,1.25737978,605.59,603.56,0.2879043]
[1745606088816,1.25737978,605.88,603.06,1.04405207]
[1745606089014,0.28799484,605.58,603.55,0.28799484]
[1745606089314,1.25737978,605.88,603.55,0.28799484]
[1745606090014,0.28796505,605.87,603.55,0.28799484]
[1745606091616,1.25737978,605.88,603.24,1.467]
[1745606091916,0.28796505,605.86,603.53,0.28796505]
[1745606094619,1.25737978,605.89,603.24,1.467]
[1745606094817,0.28799603,605.85,603.53,0.28799603]
[1745606095313,0.28799603,605.85,603.24,1.467]
[1745606095515,0.28799603,605.85,603.25,0.30403464]
[1745606095919,0.28799603,605.85,603.26,0.59203067]
[1745606096114,1.25737978,605.84,603.26,0.28799603]
[1745606096314,1.25737978,605.84,603.27,0.30402119]
[1745606096514,1.25737978,605.84,603.28,0.30402119]
[1745606096819,1.25737978,605.84,603.29,0.30402119]
[1745606097020,1.25737978,605.84,603.3,0.30402119]
[1745606097320,1.25737978,605.84,603.31,0.30402119]
[1745606097620,1.25737978,605.84,603.27,1.147]
[1745606097817,1.25737978,605.84,603.28,0.30402137]
[1745606098015,0.28799841,605.83,603.29,0.30402137]
[1745606098315,0.28799841,605.83,603.3,0.30402137]
[1745606098513,0.28799841,605.83,603.31,0.30402137]
[1745606098714,0.28799841,605.83,603.32,0.30402137]
[1745606098915,1.25737978,605.38,603.33,0.30402137]
[1745606099120,1.25737978,605.38,603.27,1.147]
[1745606099314,1.25737978,605.38,603.28,0.30401534]
[1745606099515,1.25737978,605.38,603.29,0.30401534]
[1745606099718,1.25737978,605.38,603.3,0.30401534]
[1745606100018,1.25737978,605.38,603.31,0.30401534]
[1745606100223,1.25737978,605.38,603.32,0.30401534]
[1745606100423,1.25737978,605.38,603.33,0.30401534]
[1745606100625,1.25737978,605.38,603.27,1.147]
[1745606100926,0.28804847,605.37,603.29,0.28804847]
[1745606101123,0.28804847,605.37,603.3,0.30400602]
[1745606101319,0.28804847,605.37,603.31,0.30400602]
[1745606101524,0.28804847,605.37,603.32,0.30400602]
[1745606101724,0.28804847,605.37,603.33,0.30400602]
[1745606101924,0.28804847,605.37,603.34,0.30400602]
[1745606102124,0.28804847,605.37,603.35,0.30400602]
[1745606102325,0.28804847,605.37,603.36,0.30400602]
[1745606102527,0.28804847,605.37,603.37,0.30400602]
[1745606102726,0.28804847,605.37,603.38,0.30400602]
[1745606102921,0.28804847,605.37,603.39,0.30400602]
[1745606103122,0.28804847,605.37,603.4,0.30400602]
[1745606103322,0.28804847,605.37,603.48,1.04405207]
[1745606103525,0.28804847,605.37,603.49,0.30401228]
[1745606103725,1.25737978,605.41,603.49,0.30401228]
[1745606104824,1.25737978,605.41,603.5,0.30401249]
[1745606105028,0.28801986,605.4,603.51,0.30401249]
[1745606105330,0.28801986,605.4,603.52,0.30401249]
[1745606105528,0.28801986,605.4,603.49,0.30401249]
[1745606105724,0.28801986,605.4,603.5,0.30401249]
[1745606105926,0.28801986,605.4,603.49,0.30401249]
[1745606106632,1.25737978,605.44,603.49,0.30401249]
[1745606107033,0.28801629,605.39,603.49,0.30401249]
[1745606108627,0.28801629,605.39,603.46,0.30401249]
[1745606108832,0.28801629,605.39,603.5,0.30401249]
[1745606109032,0.28801629,605.39,603.51,0.30401249]
[1745606109228,0.28801629,605.39,603.46,0.30396873]
[1745606109430,0.28801629,605.39,603.45,1.04405207]
[1745606109634,0.28801629,605.39,603.46,0.30396297]
[1745606110938,0.28801629,605.39,603.45,1.04405207]
[1745606111133,0.28801629,605.39,603.46,0.30396733]
[1745606112032,0.28801629,605.39,603.47,0.30396733]
[1745606112336,0.28801629,605.39,603.48,0.30396733]
[1745606112638,1.25737978,605.84,603.49,0.30397721]
[1745606112831,1.25737978,605.84,603.5,0.30397721]
[1745606113034,0.28795671,605.38,603.51,0.30397721]
[1745606113234,1.25737978,605.84,603.52,0.30397721]
[1745606113434,1.25737978,605.84,603.53,0.30397721]
[1745606113638,1.25737978,605.84,603.45,0.30397721]
[1745606113834,1.25737978,605.84,603.46,0.30397721]
[1745606114034,0.28795671,605.83,603.45,0.30397721]
[1745606114337,1.25737978,605.82,603.45,0.30397721]
[1745606115633,1.25737978,605.82,603.41,1.04405207]
[1745606115832,1.25737978,605.82,603.42,0.30397748]
[1745606116037,0.28795909,605.81,603.44,0.28795909]
[1745606116239,0.28795909,605.81,603.45,0.30397748]
[1745606116938,1.25737978,605.77,603.45,0.30397748]
[1745606118838,0.28796505,605.76,603.44,0.28796505]
[1745606119239,0.28796505,605.76,603.45,0.30397192]
[1745606119541,1.25737978,605.7,603.52,1.04405207]
[1745606119740,1.25737978,605.7,603.53,0.30397192]
[1745606120339,1.25737978,605.7,603.52,1.04405207]
[1745606120536,1.25737978,605.7,603.53,0.30398725]
[1745606122042,0.28796386,605.69,603.54,0.30397683]
[1745606122240,1.25737978,605.36,603.63,1.04405207]
[1745606122441,1.25737978,605.36,603.64,0.30397683]
[1745606123546,1.25737978,605.36,603.63,1.04405207]
[1745606123845,1.25737978,605.36,603.64,0.30397678]
[1745606124042,1.25737978,605.36,603.63,1.04405207]
[1745606124844,1.25737978,605.49,603.6,1.04405207]
[1745606125041,0.28799126,605.35,603.6,1.04405207]
[1745606125344,1.25737978,605.49,603.61,0.30398419]
[1745606125545,1.25737978,605.49,603.6,1.04405207]
[1745606125947,0.28799603,605.48,603.6,1.04405207]
[1745606127644,1.25737978,605.62,603.32,1.04405207]
[1745606127848,1.25737978,605.62,603.33,0.30406577]
[1745606128148,0.2880151,605.47,603.47,0.2880151]
[1745606128343,1.25737978,605.62,603.32,1.04405207]
[1745606128643,1.25737978,605.62,603.33,0.30406548]
[1745606129047,0.28803297,605.61,603.34,0.28803297]
[1745606129243,0.28803297,605.61,603.35,0.30406548]
[1745606129647,0.28803297,605.61,603.34,0.28803297]
[1745606129847,0.28803297,605.61,603.35,0.30405045]
[1745606130349,1.25737978,605.47,603.35,0.30405045]
[1745606130850,1.25737978,605.47,603.36,0.30405045]
[1745606131150,0.28804847,605.46,603.37,0.30405045]
[1745606131342,0.28804847,605.46,603.35,0.30405045]
[1745606131547,0.28804847,605.46,603.36,0.30405045]
[1745606131847,0.28804847,605.46,603.37,0.30405045]
[1745606132043,0.28804847,605.46,603.38,0.30405045]
[1745606132247,0.28804847,605.46,603.39,0.30405045]
[1745606132447,0.28804847,605.46,603.35,0.30405045]
[1745606132649,0.28804847,605.46,603.36,0.30405045]
[1745606132850,0.28804847,605.46,603.35,0.30405045]
[1745606133148,0.28804847,605.46,603.36,0.30405045]
[1745606133344,0.28804847,605.46,603.37,0.30405045]
[1745606133546,0.28804847,605.46,603.35,0.30405045]
[1745606133747,1.25737978,605.55,603.36,0.30405045]
[1745606133945,0.2880294,605.45,603.37,0.30405045]
[1745606134250,1.25737978,605.55,603.35,0.30405045]
[1745606134549,1.25737978,605.55,603.36,0.30405045]
[1745606134745,1.25737978,605.55,603.35,0.30405045]
[1745606134947,0.2880294,605.54,603.36,0.30405045]
[1745606135148,0.2880294,605.54,603.37,0.30405045]
[1745606135348,0.2880294,605.54,603.38,0.30405045]
[1745606135550,0.2880294,605.54,603.35,0.30405045]
[1745606135747,0.2880294,605.54,603.36,0.30405045]
[1745606135950,0.2880294,605.54,603.35,0.30405045]
[1745606136250,0.2880294,605.54,603.36,0.30405045]
[1745606136448,0.2880294,605.54,603.35,0.30405045]
[1745606136652,0.2880294,605.54,603.24,1.04405207]
[1745606136653,1.25737978,605.8,603.36,0.30405045]
[1745606136852,1.25737978,605.8,603.28,0.30405045]
[1745606137052,0.2879996,605.53,603.34,0.2879996]
[1745606137254,1.25737978,605.8,603.35,0.30405045]
[1745606137454,1.25737978,605.8,603.36,0.30403478]
[1745606137654,1.25737978,605.8,603.37,0.30403478]
[1745606137851,1.25737978,605.8,603.35,0.30403478]
[1745606138057,1.25737978,605.78,603.35,0.30403478]
[1745606139955,1.25737978,605.78,603.36,0.30403478]
[1745606139956,0.28800199,605.77,603.36,0.30403478]
[1745606140155,0.28800199,605.77,603.37,0.30403478]
[1745606140357,0.28800199,605.77,603.34,0.28800199]
[1745606140657,0.28800199,605.77,603.35,0.30404206]
[1745606141058,0.28800199,605.77,603.36,1.046]
[1745606141357,0.28800199,605.77,603.37,0.30404206]
[1745606142057,0.28800199,605.77,603.36,1.046]
[1745606142357,0.28800199,605.77,603.37,0.30404265]
[1745606142658,1.25737978,605.93,603.37,0.30404265]
[1745606143155,0.28798173,605.92,603.37,0.30404265]
[1745606145162,0.28798173,605.92,603.36,1.046]
[1745606145356,0.28798173,605.92,603.37,0.30404501]
[1745606145557,1.25737978,605.79,603.37,0.30404501]
[1745606146762,1.25737978,605.79,603.36,1.33384714]
[1745606146958,1.25737978,605.79,603.37,0.30406097]
[1745606148063,1.25737978,605.67,603.37,0.30406097]
[1745606148358,1.25737978,605.67,603.38,0.30406021]
[1745606148556,1.25737978,605.67,603.37,0.30406021]
[1745606148755,1.25737978,605.67,603.38,0.30406021]
[1745606148960,1.25737978,605.67,603.37,0.30406021]
[1745606149158,1.25737978,605.67,603.38,0.30406021]
[1745606149363,1.25737978,605.67,603.37,0.30406021]
[1745606149562,1.25737978,605.67,603.38,0.30406021]
[1745606149758,1.25737978,605.67,603.36,1.33384714]
[1745606149759,1.25737978,605.67,603.37,0.30406021]
[1745606150064,1.25737978,605.67,603.38,0.30406021]
[1745606150366,1.25737978,605.67,603.39,0.30406021]
[1745606150558,1.25737978,605.67,603.4,0.30406021]
[1745606150765,1.25737978,605.67,603.37,0.30406021]
[1745606151064,1.25737978,605.67,603.38,0.30406021]
[1745606151257,1.25737978,605.5,603.37,0.30406021]
[1745606152059,0.28803297,605.49,603.37,0.30406021]
[1745606152966,0.28803297,605.49,603.36,1.33403297]
[1745606153263,0.28803297,605.49,603.37,0.30404854]
[1745606153464,0.28803297,605.49,603.36,1.33403297]
[1745606154061,0.28803297,605.49,603.37,0.30410384]
[1745606154363,1.25737978,605.43,603.37,0.30410384]
[1745606154758,1.25737978,605.43,603.36,1.33403297]
[1745606154957,1.25737978,605.43,603.37,0.30405574]
[1745606156258,1.25737978,605.43,603.36,1.33403297]
[1745606156464,1.25737978,605.43,603.37,0.30405547]
[1745606157368,1.25737978,605.48,603.37,0.30405547]
[1745606157968,0.28803774,605.47,603.38,0.30404705]
[1745606158264,0.28803774,605.47,603.39,0.30404705]
[1745606158468,0.28803774,605.47,603.4,0.30404705]
[1745606158669,0.28803774,605.47,603.41,0.30404705]
[1745606158864,0.28803774,605.47,603.37,0.30404705]
[1745606159066,0.28803774,605.47,603.38,0.30404705]
[1745606159264,0.28803774,605.47,603.39,0.30404705]
[1745606159470,1.25737978,605.31,603.46,1.04405207]
[1745606159669,1.25737978,605.31,603.47,0.30404705]
[1745606160970,0.28804609,605.3,603.47,0.30404705]
[1745606161871,1.25737978,605.14,603.57,1.04405207]
[1745606162066,1.25737978,605.14,603.58,0.30404705]
[1745606162273,1.25737978,605.14,603.59,0.30404697]
[1745606162465,1.25737978,605.14,603.58,0.30404697]
[1745606164871,1.25737978,605.14,603.58,0.29236853]
[1745606165068,0.28805324,605.16,603.58,0.29236853]
[1745606165571,0.28805324,605.16,603.57,1.04405207]
[1745606166067,0.28805324,605.16,603.58,0.30405552]
[1745606166271,0.28805324,605.16,603.57,1.04405207]
[1745606167371,0.28805324,605.16,603.58,0.30405853]
[1745606167566,0.28805324,605.16,603.57,1.04405207]
[1745606167872,0.28805324,605.16,603.53,1.04405207]
[1745606168067,0.28805324,605.16,603.54,0.30405867]
[1745606169773,1.25737978,605.26,603.54,0.30405867]
[1745606170074,0.2880437,605.16,603.54,0.30405867]
[1745606170272,1.25737978,605.26,603.55,0.3040511]
[1745606170472,1.25737978,605.26,603.54,0.3040511]
[1745606170975,0.2880437,605.25,603.54,0.3040511]
[1745606171575,1.25737978,605.17,603.54,0.3040511]
[1745606171874,1.25737978,605.17,603.55,0.30405624]
[1745606172075,1.25737978,605.17,603.47,0.30405624]
[1745606172976,0.28806278,605.16,603.47,0.30405624]
[1745606174875,1.25737978,605.15,603.49,1.04405207]
[1745606175080,1.25737978,605.15,603.5,0.30405624]
[1745606175978,1.25737978,605.15,603.51,0.30408025]
[1745606176181,1.25737978,605.15,603.5,0.30408025]
[1745606176382,1.25737978,605.15,603.49,1.04405207]
[1745606176982,0.28808066,605.14,603.49,1.04405207]
[1745606177679,0.28808066,605.14,603.42,0.28808066]
[1745606178685,1.25737978,605.19,603.43,0.30409725]
[1745606178885,1.25737978,605.19,603.44,0.30409725]
[1745606179081,0.28809616,605.13,603.45,0.30409725]
[1745606179284,0.28809616,605.13,603.41,0.30409725]
[1745606179481,0.28809616,605.13,603.42,0.30409725]
[1745606179687,0.28809616,605.13,603.41,0.30409725]
[1745606181687,1.25737978,605.26,603.41,0.30409725]
[1745606181988,0.28808782,605.12,603.41,0.30409725]
[1745606182287,1.25737978,605.27,603.41,0.30409725]
[1745606183490,0.28808662,605.26,603.41,0.30409725]
[1745606184691,1.25737978,605.27,603.4,1.04405207]
[1745606184889,2.12377208,605.91,603.15,1.04405207]
[1745606184890,1.25737978,605.31,603.41,1.34813375]
[1745606185090,0.28807709,605.25,603.42,0.30408168]
[1745606187292,1.25737978,605.1,603.45,1.04405207]
[1745606187591,1.25737978,605.1,603.46,0.30408168]
[1745606190292,1.25737978,605.06,603.46,0.30408168]
[1745606190487,1.25737978,605.06,603.46,1.34813375]
[1745606190688,1.25737978,605.06,603.47,0.30408168]
[1745606192494,1.25737978,605.07,603.47,0.30408168]
[1745606192792,1.25737978,605.07,603.48,0.30408453]
[1745606192993,1.25737978,605.07,603.46,0.30408453]
[1745606193188,1.25737978,605.07,603.47,0.30408453]
[1745606193393,1.25737978,605.07,603.48,0.30408453]
[1745606193586,1.25737978,605.07,603.46,0.30408453]
[1745606193788,1.25737978,605.07,603.47,0.30408453]
[1745606193994,1.25737978,605.07,603.46,0.30408453]
[1745606194292,1.25737978,605.07,603.47,0.30408453]
[1745606194493,1.25737978,605.07,603.46,0.30408453]
[1745606194693,1.25737978,605.07,603.47,0.30408453]
[1745606194893,1.25737978,605.08,603.49,1.04405207]
[1745606195094,1.25737978,605.08,603.5,0.30408453]
[1745606197295,1.25737978,605.05,603.5,1.3481366]
[1745606197494,1.25737978,605.05,603.51,0.30408453]
[1745606198895,1.24678002,605.05,603.51,0.30408453]
[1745606200097,0.28807709,605.14,603.58,1.04405207]
[1745606200296,0.28807709,605.14,603.59,0.30408453]
[1745606200497,0.28807709,605.14,603.6,0.30404899]
[1745606200792,0.28807709,605.14,603.61,0.30404899]
[1745606200996,0.28807709,605.14,603.59,0.30404899]
[1745606201197,0.28807709,605.14,603.6,0.30404899]
[1745606201497,0.28807709,605.14,603.61,0.30404899]
[1745606201697,0.28807709,605.14,603.59,0.30404899]
[1745606201992,0.28807709,605.14,603.58,1.04405207]
[1745606202193,0.28807709,605.14,603.59,0.30404746]
[1745606202697,2.12377208,605.21,603.6,0.30404746]
[1745606202896,2.12377208,605.21,603.57,0.30404746]
[1745606203197,2.12377208,605.21,603.58,0.30404746]
[1745606203396,2.12377208,605.21,603.57,0.30404746]
[1745606203593,2.12377208,605.21,603.59,0.30404746]
[1745606203798,2.12377208,605.21,603.6,0.30404746]
[1745606204100,0.28804251,605.2,603.61,0.30404746]
[1745606204298,0.28804251,605.2,603.62,0.30404746]
[1745606204599,0.28804251,605.2,603.63,0.30404746]
[1745606204799,0.28804251,605.2,603.57,0.30404746]
[1745606204992,0.28804251,605.2,603.58,0.30404746]
[1745606205299,0.28804251,605.2,603.59,0.30401455]
[1745606205498,0.28804251,605.2,603.58,0.30401455]
[1745606205798,0.28804251,605.2,603.59,0.30401455]
[1745606206097,0.28804251,605.2,603.6,0.30401455]
[1745606206298,0.28804251,605.2,603.61,0.30401455]
[1745606206500,0.28804251,605.2,603.62,0.30401455]
[1745606206696,0.28804251,605.2,603.58,0.30401455]
[1745606206895,0.28804251,605.2,603.59,0.30401455]
[1745606207095,0.28804251,605.2,603.6,0.30401455]
[1745606207300,0.28804251,605.2,603.61,0.30401455]
[1745606207496,0.28804251,605.2,603.47,1.04405207]
[1745606207497,0.28804251,605.2,603.48,0.30401455]
[1745606207701,0.28804251,605.2,603.49,0.30401455]
[1745606207901,0.28804251,605.2,603.48,0.30401455]
[1745606208202,0.28804251,605.2,603.47,1.04405207]
[1745606208398,0.28804251,605.2,603.48,0.30401587]
[1745606208701,2.12377208,605.59,603.48,0.30401587]
[1745606208897,2.12377208,605.61,603.48,0.30401587]
[1745606209198,2.12377208,605.61,603.49,0.30401587]
[1745606209396,2.12377208,605.61,603.47,0.30401587]